[Event "34th GER-ch Seniors-50 2022"]
[Site "Magdeburg"]
[Date "2022.08.15"]
[Round "4.5"]
[White "Lindam, Ingo"]
[Black "Koscielski, Janusz"]
[Result "0-1"]
[ECO "D02"]
[WhiteElo "2130"]
[BlackElo "2255"]
[Annotator "TA"]
[PlyCount "104"]
[EventDate "2022.08.12"]
[EventType "swiss"]
[EventCountry "GER"]
[SourceTitle "playchess.com"]
[Source "ChessBase"]
[SourceQuality "1"]
[TimeControl "40/5400+30:1800+30"]

{[%evp 15,104,-6,-6,-15,-20,-15,2,0,6,0,0,0,0,-27,-19,-26,-8,-21,5,4,0,0,22,36,11,0,0,0,0,0,8,0,7,-132,-132,-132,-128,-268,-258,-245,-231,-289,-294,-287,-285,-284,-261,-347,-338,-332,-331,-5987,-212,-209,-186,-209,-184,-823,-839,-846,-839,-835,-745,-1637,-1542,-5022,-1362,-1107,-1074,-1056,-1050,-983,-934,-991,-952,-942,-895,-864,-750,-29963,-2015,-29967,-29966,-29968,-29966,-29968,-29968,-29966,-29965,-5469,-743]} 1. d4 {[%emt 0:00:03]} d5 {[%emt 0:00:06]} 2. Nf3 {[%emt 0:00:14]} e6 {[%emt 0:00:56]} 3. Bf4 {[%emt 0:01:15]} Nf6 {[%emt 0:00:26]} 4. Nbd2 {[%emt 0:00:08]} Bd6 {[%emt 0:00:17]} 5. Bg3 {[%emt 0:00:11]} O-O {[%emt 0:00:18]} 6. e3 {[%emt 0:00:09]} c5 {[%emt 0:00:28]} 7. c3 {[%emt 0:00:13]} Qc7 {[%emt 0:00:46]} 8. Bd3 {[%emt 0:16:15]} Nbd7 {[%emt 0:00:49]} 9. O-O {[%emt 0:00:46] D02: 1 d4 d5 2 Nf3 sidelines, including 2...Nf6 3 g3 and 2...Nf6 3 Bf4.} Bxg3 {[%emt 0:00:53]} 10. hxg3 {[%emt 0:00:28]} e5 {[%emt 0:00:16] Threatens to win with ...e4.} 11. e4 {[%emt 0:03:04] The position is equal.} dxe4 {[%emt 0:10:24]} 12. Nxe4 {[%emt 0:01:21]} Nxe4 {[%emt 0:00:45]} 13. Bxe4 {[%emt 0:00:17]} Nf6 {[%emt 0:01:29]} 14. Bc2 {[%emt 0:01:30]} exd4 {[%emt 0:03:33]} 15. cxd4 {[%emt 0:00:28]} Rd8 {[%emt 0:00:27]} 16. Rc1 {[%emt 0:05:29] [#]} Qa5 $146 {[%emt 0:12:07]} ({Predecessor:} 16... Qd6 17. dxc5 Qf8 18. Qe2 Be6 19. a3 a5 20. Ng5 Bg4 21. Qe3 Bh5 22. Bb1 Rac8 {1-0 (41) Ocelak,J (2210)-Krzywda,A (2110) Chess.com INT 2021}) 17. Bb3 {[%emt 0:03:46]} cxd4 {[%emt 0:06:20]} 18. Re1 {[%emt 0:04:35]} (18. Nxd4 Bg4 19. f3 Qb6 20. fxg4 Rxd4 $17) 18... Be6 {[%emt 0:18:24]} 19. Bxe6 {[%emt 0:25:13]} fxe6 {[%emt 0:02:08]} 20. Qb3 {[%emt 0:01:20]} Qd5 {[%emt 0:05:40]} 21. Qxd5 {[%emt 0:08:04]} Rxd5 {[%emt 0:00:18]} 22. Rxe6 {[%emt 0:06:18]} Rad8 {[%emt 0:02:59]} 23. Re7 {[%emt 0:01:07]} d3 {[%emt 0:06:38][%cal Bd4d3,Bd3d2][%mdl 32]} 24. Rxb7 {[%emt 0:05:50]} (24. Nd2 $11) 24... d2 $17 {[%emt 0:01:42]} 25. Rd1 {[%emt 0:00:19]} Rc8 {[%emt 0:02:39] Prevents Rc7. aiming for ...Rc1.} 26. Kf1 {[%emt 0:03:21] Now White is beyond hope.} (26. Rxa7 $2 Rc1 27. Nxd2 Rxd1+ 28. Nf1 Rc1 $19) (26. Nxd2 $17 Rcd8 27. f3) 26... Rc1 $19 {[%emt 0:02:08]} 27. Ke2 {[%emt 0:00:14]} Rxd1 {[%emt 0:00:54]} 28. Kxd1 {[%emt 0:01:34]} Ne4 {[%emt 0:00:33]} 29. Nxd2 {[%emt 0:01:13]} ({Don't play} 29. Rb8+ Kf7 30. Nxd2 (30. Rb7+ $2 Kf6 $19) 30... Rxd2+ 31. Ke1 Rc2) 29... Rxd2+ {[%emt 0:00:22][%mdl 4096] Endgame KRN-KR} 30. Ke1 {[%emt 0:00:42]} Rc2 {[%emt 0:03:28]} ({Wrong is} 30... Rxf2 $2 31. Re7 $17) 31. Rxa7 {[%emt 0:10:33]} Rxb2 {[%emt 0:04:33]} 32. Ra8+ {[%emt 0:00:00]} Kf7 {[%emt 0:00:08]} 33. Ra4 $2 {[%emt 0:00:00]} (33. Ra5) 33... Nc3 $2 {[%emt 0:02:28]} (33... Rb1+ 34. Ke2 Nc3+ 35. Ke3 Nxa4) 34. Ra7+ {[%emt 0:00:00]} Kf6 {[%emt 0:03:17] ...Re2+ is the strong threat.} 35. Ra6+ {[%emt 0:00:00]} Ke5 {[%emt 0:05:02] And now ...Re2+ would win.} 36. Ra7 $2 {[%emt 0:00:00] [#]} (36. Ra5+ Kd4 37. Ra7) 36... Re2+ $1 {[%emt 0:00:35]} 37. Kf1 {[%emt 0:00:14]} Rxa2 {[%emt 0:00:11]} 38. f4+ {[%emt 0:01:00]} Kf6 {[%emt 0:00:26]} 39. Rc7 {[%emt 0:00:14]} Nd5 {[%emt 0:02:30]} 40. Rc6+ {[%emt 0:00:27]} Kf7 {[%emt 0:00:48]} (40... Kf5 $142 41. Rc5 Ke4) 41. Kg1 {[%emt 0:31:46]} h6 {[%emt 0:32:18]} 42. Kh2 {[%emt 0:00:00]} Ne3 {[%emt 0:00:00]} 43. Kh3 {[%emt 0:00:00]} Rxg2 {[%emt 0:00:00] Strongly threatening ...Rg1.} 44. Rc7+ {[%emt 0:00:00]} Kg8 {[%emt 0:00:00]} 45. Rc8+ {[%emt 0:00:00] [#]} Kh7 $1 {[%emt 0:00:00]} 46. Re8 {[%emt 0:00:00]} Re2 {[%emt 0:00:00] ( -> ...h5)} 47. Ra8 {[%emt 0:00:00]} Re1 {[%emt 0:00:00]} (47... h5 $142 48. Rf8 Nf1 49. Kh4 Rh2+ 50. Kg5 Nxg3 51. Re8 Rg2 52. Re5 Ne2+ 53. Kf5 Nd4+ 54. Ke4 Re2+ 55. Kxd4 Rxe5 56. fxe5 Kg6 57. Kd5 Kf7 58. Kd6 Ke8 59. Kd5 Ke7 60. Ke4 Ke6 61. Kf3 Kxe5 62. Kg3 g5 63. Kf3 h4 64. Kg2 g4 65. Kg1 h3 66. Kf2 Kf4 67. Ke2 g3 68. Ke1 h2 69. Ke2 g2 70. Ke1 h1=Q+ 71. Kd2 g1=Q 72. Kc2 Qc6+ 73. Kb2 Qgb6+ 74. Ka3 Qa8#) 48. Kh2 {[%emt 0:00:00]} h5 {[%emt 0:00:00]} 49. Ra5 {[%emt 0:00:00]} Kh6 {[%emt 0:00:00]} 50. Ra6+ {[%emt 0:00:00]} g6 {[%emt 0:00:00]} 51. Rb6 {[%emt 0:00:00]} Re2+ {[%emt 0:00:00]} 52. Kh1 {[%emt 0:00:00]} Nf5 {[%emt 0:00:00] Weighted Error Value: White=0.82/Black=0.33} 0-1

[Event "34th GER-ch Seniors-50 2022"]
[Site "Magdeburg"]
[Date "2022.08.15"]
[Round "4.6"]
[White "Hirn, Oskar"]
[Black "Juegel, Marcel"]
[Result "1/2-1/2"]
[ECO "D02"]
[WhiteElo "2188"]
[BlackElo "2126"]
[Annotator "TA"]
[PlyCount "53"]
[EventDate "2022.08.12"]
[EventType "swiss"]
[EventCountry "GER"]
[SourceTitle "playchess.com"]
[Source "ChessBase"]
[SourceQuality "1"]
[TimeControl "40/5400+30:1800+30"]

{[%evp 9,53,5,5,0,22,18,25,33,29,33,34,18,46,24,60,52,103,109,101,83,93,94,93,102,88,62,100,114,140,106,184,169,227,195,227,217,302,292,300,-6,0,-89,55,0,0,0]} 1. Nf3 {[%emt 0:00:30]} Nc6 {[%emt 0:00:32]} 2. d4 {[%emt 0:01:24]} d5 {[%emt 0:00:10]} 3. Bf4 {[%emt 0:00:37]} Bf5 {[%emt 0:00:27]} 4. e3 {[%emt 0:00:48]} e6 {[%emt 0:00:29]} 5. c3 {[%emt 0:02:20]} Bd6 {[%emt 0:01:36]} 6. Bg3 {[%emt 0:03:29] D02: 1 d4 d5 2 Nf3 sidelines, including 2...Nf6 3 g3 and 2...Nf6 3 Bf4.} Nge7 {[%emt 0:03:00]} 7. Nbd2 {[%emt 0:00:25]} a6 {[%emt 0:01:21] [#]} 8. Nh4 $146 {[%emt 0:01:14] White has an edge.} ({Predecessor:} 8. Be2 Bxg3 9. hxg3 Qd6 10. Nh4 O-O 11. Nxf5 Nxf5 12. Qc2 g6 13. g4 Nxe3 14. fxe3 {1-0 (35) Kristiansen,H-Tummasarson,F (1235) Faroe Islands 2018}) 8... Qd7 {[%emt 0:03:17]} 9. Nxf5 {[%emt 0:05:12]} Nxf5 {[%emt 0:03:03]} 10. Bxd6 {[%emt 0:01:01]} Qxd6 {[%emt 0:02:25]} 11. Bd3 {[%emt 0:00:43]} Nce7 {[%emt 0:06:28]} 12. e4 {[%emt 0:09:48]} Nh4 {[%emt 0:05:26]} ({Black should play} 12... dxe4 $14 13. Nxe4 Qc6) 13. g3 $16 {[%emt 0:07:10]} Nhg6 {[%emt 0:00:48]} 14. e5 $36 {[%emt 0:00:48][%mdl 2048] White is on the roll.} Qb6 {[%emt 0:01:17]} 15. b4 {[%emt 0:07:47]} f6 {[%emt 0:05:49]} 16. exf6 {[%emt 0:02:30]} gxf6 {[%emt 0:00:13]} 17. O-O {[%emt 0:01:39]} h5 {[%emt 0:08:59]} 18. Qf3 {[%emt 0:04:33]} f5 {[%emt 0:09:25]} 19. Rfe1 {[%emt 0:01:04] Against e5. Nb3 is the strong threat. White is more active.} O-O-O {[%emt 0:02:32] [#]} (19... e5 $16 {was worth a try.}) 20. Nb3 $1 $18 {[%emt 0:01:08]} Rdf8 {[%emt 0:01:02]} (20... Kb8 {is a better defense.} 21. Nc5 Nf8) 21. Nc5 {[%emt 0:04:05]} e5 {[%emt 0:01:23]} 22. dxe5 {[%emt 0:00:36]} h4 {[%emt 0:07:08]} 23. g4 {[%emt 0:00:45]} h3 {[%emt 0:00:45]} 24. Kf1 $2 {[%emt 0:09:37]} ({Not} 24. gxf5 Nh4 25. Qe2 (25. Qxh3 Nhxf5 26. Na4 Qc6 $19) 25... Nexf5 $16) ({White must play} 24. Bxf5+ $18 Nxf5 25. gxf5) 24... Nh4 {[%emt 0:01:25]} 25. Qxh3 {[%emt 0:02:52] [#]} (25. Qg3 $1 $11) 25... Nhg6 {[%emt 0:05:03] Pair of Knights!} (25... Qc6 $1 $17) 26. Qf3 {[%emt 0:00:20]} (26. Qg3 $1 $14) 26... Nh4 $11 {[%emt 0:00:27]} 27. Qh3 {[%emt 0:00:02] Weighted Error Value: White=0.39/Black=0.32} 1/2-1/2

[Event "34th GER-ch Seniors-50 2022"]
[Site "Magdeburg"]
[Date "2022.08.15"]
[Round "4.7"]
[White "Balzer, Lars"]
[Black "Heck, Norbert"]
[Result "1/2-1/2"]
[ECO "B26"]
[WhiteElo "2012"]
[BlackElo "2249"]
[Annotator "TA"]
[PlyCount "36"]
[EventDate "2022.08.12"]
[EventType "swiss"]
[EventCountry "GER"]
[SourceTitle "playchess.com"]
[Source "ChessBase"]
[SourceQuality "1"]
[TimeControl "40/5400+30:1800+30"]

{[%evp 21,36,13,192,171,218,111,101,120,212,216,217,212,190,191,191,194,218]} 1. e4 {[%emt 0:00:03]} c5 {[%emt 0:00:12]} 2. Nc3 {[%emt 0:00:18]} Nc6 {[%emt 0:00:09]} 3. g3 {[%emt 0:00:13]} g6 {[%emt 0:00:27]} 4. d3 {[%emt 0:00:07]} Bg7 {[%emt 0:00:10]} 5. Be3 {[%emt 0:00:44]} d6 {[%emt 0:00:23]} 6. Qd2 {[%emt 0:00:22]} e6 {[%emt 0:00:51]} 7. Bg2 {[%emt 0:00:19]} Nd4 {[%emt 0:00:36]} 8. Nd1 {[%emt 0:01:43]} Ne7 {[%emt 0:01:04]} 9. c3 {[%emt 0:00:13]} Ndc6 {[%emt 0:00:26]} 10. Bh6 {[%emt 0:03:10]} O-O {[%emt 0:00:21]} 11. h4 {[%emt 0:00:25][%cal Bh2h4,Bh4h5][%mdl 32]} f5 $2 {[%emt 0:09:21] [#]} (11... Bxh6 $11 12. Qxh6 f6) 12. h5 $18 {[%emt 0:03:41] B26: Closed Sicilian: 3 g3, lines with early Be3.} Rf7 {[%emt 0:00:21]} (12... Ne5 $142) 13. Bxg7 {[%emt 0:01:39]} (13. hxg6 $18 hxg6 14. Nf3) 13... Rxg7 $16 {[%emt 0:00:27]} 14. hxg6 {[%emt 0:01:55] White is better.} hxg6 {[%emt 0:00:30] [#]} (14... Nxg6 $16 {was necessary.} 15. Ne2 e5) 15. Nf3 $146 {[%emt 0:06:08] White is clearly better.} ({Resist} 15. Qh6 $6 Kf8 16. f4 d5 $16) ({Predecessor:} 15. Qh6 Bd7 16. Nf3 Ne5 17. Nxe5 dxe5 18. exf5 exf5 19. Bxb7 Rb8 20. Ba6 Bc6 21. Bc4+ {1-0 (52) Pham,M (1962)-Di,X (1730) Penang 2017}) 15... Ne5 {[%emt 0:01:41]} 16. Ng5 {[%emt 0:04:59]} ({Weaker is} 16. Qh6 Nf7 17. Qh2 Qb6 $14) 16... Nf7 {[%emt 0:00:47]} 17. Nxf7 {[%emt 0:03:15]} Kxf7 {[%emt 0:00:20]} 18. Ne3 {[%emt 0:01:46]} Rb8 {[%emt 0:02:13] Weighted Error Value: White=0.16 (very precise) /Black=0.80} 1/2-1/2

[Event "34th GER-ch Seniors-50 2022"]
[Site "Magdeburg"]
[Date "2022.08.15"]
[Round "4.8"]
[White "Stahr, Ralf-Peter"]
[Black "Cmiel, Thorsten"]
[Result "0-1"]
[ECO "A13"]
[WhiteElo "2147"]
[BlackElo "2018"]
[Annotator "TA"]
[PlyCount "66"]
[EventDate "2022.08.12"]
[EventType "swiss"]
[EventCountry "GER"]
[SourceTitle "playchess.com"]
[Source "ChessBase"]
[SourceQuality "1"]
[TimeControl "40/5400+30:1800+30"]

{[%evp 9,66,-34,-28,-51,-54,-58,-63,-68,-32,-41,-27,-25,-18,-31,0,-43,-31,-23,-25,-19,0,-26,-45,-44,25,17,98,96,181,114,131,121,280,169,242,221,192,167,222,221,205,208,218,155,175,66,249,136,224,0,255,220,262,264,325,321,349,-230,-236]} 1. c4 {[%emt 0:03:39]} e6 {[%emt 0:00:44]} 2. Nc3 {[%emt 0:00:09]} d5 {[%emt 0:00:06]} 3. Nf3 {[%emt 0:00:19]} c6 {[%emt 0:04:18][%cal Bc7c6,Bc6c5][%mdl 32]} 4. e4 {[%emt 0:00:23]} d4 {[%emt 0:03:24]} 5. Ne2 {[%emt 0:00:11]} c5 $1 {[%emt 0:00:05]} 6. d3 {[%emt 0:00:09][%cal Ob2b4] A13: English Opening: 1...e6.} Nc6 {[%emt 0:00:03]} 7. g3 {[%emt 0:00:10]} e5 {[%emt 0:00:30]} 8. Bg2 {[%emt 0:01:06] [#] Black is slightly better.} f6 $146 {[%emt 0:02:30]} ({Predecessor:} 8... Be7 9. O-O Bg4 10. h3 Be6 11. Ne1 Qd7 12. Kh2 O-O-O 13. f4 {½-½ (13) Springer,G (2074)-Timme,K (1942) Greifswald 2003}) 9. Nh4 {[%emt 0:00:25]} g5 {[%emt 0:00:17]} 10. Nf5 {[%emt 0:00:24]} Nge7 {[%emt 0:00:30]} 11. g4 {[%emt 0:09:13]} h5 {[%emt 0:06:44]} 12. gxh5 {[%emt 0:06:26]} Nxf5 {[%emt 0:02:20]} 13. exf5 {[%emt 0:00:09]} Bxf5 {[%emt 0:01:27] ...Nb4 is the strong threat.} 14. Ng3 {[%emt 0:00:20]} Be6 {[%emt 0:00:12]} 15. Be4 {[%emt 0:03:11]} Qd7 {[%emt 0:00:13]} 16. Qf3 {[%emt 0:01:42]} Bg7 {[%emt 0:03:07]} (16... O-O-O $1 $15) 17. Nf5 $36 {[%emt 0:00:58][%mdl 2048] White has good play.} Bxf5 {[%emt 0:01:17]} (17... Bf8 $11) 18. Bxf5 $16 {[%emt 0:00:07]} Qc7 {[%emt 0:01:29] [#]} (18... Qe7 $16) 19. Bg6+ {[%emt 0:00:49]} (19. h4 $1 $18 {[%cal Rh4g5]}) 19... Kd8 {[%emt 0:00:36] [#]} 20. h4 $1 {[%emt 0:01:36]} gxh4 {[%emt 0:00:27]} (20... Qe7 $16) 21. Rxh4 {[%emt 0:00:33] And now h6 would win.} Rf8 {[%emt 0:02:30]} (21... Ne7 {was necessary.}) 22. h6 {[%emt 0:01:32] Threatens to win with Qd5+.} Bh8 {[%emt 0:00:01]} 23. Bd2 {[%emt 0:04:12]} Qd6 {[%emt 0:00:31]} (23... Ne7 {was called for.}) 24. O-O-O $18 {[%emt 0:01:13]} Kc7 {[%emt 0:00:06]} 25. Rh5 {[%emt 0:01:57]} Rab8 {[%emt 0:02:41]} 26. Kb1 {[%emt 0:07:52]} Ne7 {[%emt 0:04:35]} 27. Be4 {[%emt 0:01:53]} (27. Bf5 $18) 27... Qe6 $2 {[%emt 0:00:14]} ({Better is} 27... f5 $1 $14) 28. Bf5 {[%emt 0:07:03]} ({White should play} 28. Rc1 $18) 28... Qc6 {[%emt 0:01:34]} (28... Nxf5 $16 {was worth a try.} 29. Rxf5 (29. Qxf5 Qxf5 30. Rxf5 Rg8 $16) 29... Qd7) 29. Be4 {[%emt 0:09:16] A strong pair of Bishops.} Qe6 {[%emt 0:02:27]} 30. Re1 {[%emt 0:02:16]} b6 {[%emt 0:05:23]} 31. h7 {[%emt 0:04:42]} Rbd8 {[%emt 0:02:49]} 32. Qg3 {[%emt 0:01:38]} Qf7 {[%emt 0:01:14]} 33. Bh6 $4 {[%emt 0:03:27][%mdl 8192]} Qxh5 {[%emt 0:00:16] Weighted Error Value: White=0.57/Black=0.39} 0-1

[Event "34th GER-ch Seniors-50 2022"]
[Site "Magdeburg"]
[Date "2022.08.16"]
[Round "5.1"]
[White "Koscielski, Janusz"]
[Black "Wacker, Peter"]
[Result "1/2-1/2"]
[ECO "C57"]
[WhiteElo "2255"]
[BlackElo "2263"]
[Annotator "TA"]
[PlyCount "42"]
[EventDate "2022.08.12"]
[EventType "swiss"]
[EventCountry "GER"]
[SourceTitle "playchess.com"]
[Source "ChessBase"]
[SourceQuality "1"]
[TimeControl "40/5400+30:1800+30"]

{[%evp 12,29,22,8,0,7,0,0,0,0,22,32,13,0,29,2,10,10,10,0]} 1. e4 {[%emt 0:00:11]} e5 {[%emt 0:00:12]} 2. Nf3 {[%emt 0:00:16]} Nc6 {[%emt 0:00:05]} 3. Nc3 {[%emt 0:00:15]} Nf6 {[%emt 0:00:14]} 4. Bb5 {[%emt 0:00:35]} Nd4 {[%emt 0:00:29]} 5. Bc4 {[%emt 0:01:19]} d6 {[%emt 0:00:42]} 6. Ng5 {[%emt 0:03:38]} d5 {[%emt 0:02:24]} 7. exd5 {[%emt 0:02:37]} h6 {[%emt 0:05:59] C57: Two Knights: Wilkes-Barre/Traxler and 4 Ng5 d5 5 exd5, unusual Black 5th moves.} 8. Nf3 {[%emt 0:03:34]} Bg4 {[%emt 0:00:08] [#] ...e4 is the strong threat.} 9. Be2 {[%emt 0:01:42]} Bxf3 {[%emt 0:01:04]} 10. Bxf3 {[%emt 0:00:22]} Nxf3+ {[%emt 0:00:48]} 11. Qxf3 {[%emt 0:00:12]} Bb4 {[%emt 0:00:20]} 12. O-O {[%emt 0:04:23]} O-O {[%emt 0:04:41]} 13. d3 {[%emt 0:04:26]} Bxc3 {[%emt 0:01:16]} 14. bxc3 {[%emt 0:00:05]} Qxd5 {[%emt 0:03:17]} 15. Qxd5 {[%emt 0:02:43] [#] Not much happened in this game.  Weighted Error Value: White=0.06 (flawless) /Black=0.04 (flawless)} {Predecessor:} Nxd5 $146 16. Bb2 f6 17. c4 Nf4 18. Rfe1 Kf7 19. Rab1 b6 20. a4 Ne6 21. a5 g5 {½-½ (38) Vallejo Pons,F (2686)-Kramnik,V (2754) Monte Carlo 2005} 1/2-1/2

[Event "34th GER-ch Seniors-50 2022"]
[Site "Magdeburg"]
[Date "2022.08.16"]
[Round "5.2"]
[White "Pitschka, Claus"]
[Black "Reddmann, Hauke"]
[Result "1/2-1/2"]
[ECO "A46"]
[WhiteElo "2188"]
[BlackElo "2181"]
[Annotator "TA"]
[PlyCount "22"]
[EventDate "2022.08.12"]
[EventType "swiss"]
[EventCountry "GER"]
[SourceTitle "playchess.com"]
[Source "ChessBase"]
[SourceQuality "1"]
[TimeControl "40/5400+30:1800+30"]

{[%evp 9,22,31,35,25,29,10,19,20,28,6,7,20,17,15,21]} 1. d4 {[%emt 0:05:38]} Nf6 {[%emt 0:00:06]} 2. Nf3 {[%emt 0:00:06]} e6 {[%emt 0:00:20]} 3. Bf4 {[%emt 0:00:19]} c5 {[%emt 0:01:02]} 4. e3 {[%emt 0:00:08]} Qb6 {[%emt 0:00:52]} 5. Na3 {[%emt 0:01:24]} d5 {[%emt 0:01:10]} 6. Nb5 {[%emt 0:00:45] A46: 1 d4 Nf6 2 Nf3 e6: Torre, London and Colle Systems.} Na6 {[%emt 0:00:05] Against Bc7} 7. h3 {[%emt 0:02:45]} Bd7 {[%emt 0:01:13]} 8. a4 {[%emt 0:02:28]} c4 {[%emt 0:01:39]} 9. Be2 {[%emt 0:07:22]} Bxb5 {[%emt 0:02:15] The position is equal.} 10. axb5 {[%emt 0:00:05] [#]} Nc7 $146 {[%emt 0:01:24]} ({Predecessor:} 10... Qxb5 11. O-O Qb6 12. b3 c3 13. Bxa6 bxa6 14. Qd3 Bb4 15. Rxa6 Qb7 16. Rfa1 O-O {1-0 (37) Robinson,D (1926)-Rodriguez,J (1967) Penarth 2013}) 11. Bxc7 {[%emt 0:02:53]} Qxc7 {[%emt 0:01:20] A rather calm draw.  Weighted Error Value: White=0.06 (flawless) /Black=0.03 (flawless)} 1/2-1/2

[Event "34th GER-ch Seniors-50 2022"]
[Site "Magdeburg"]
[Date "2022.08.16"]
[Round "5.3"]
[White "Puschendorf, Steffen"]
[Black "Zude, Arno"]
[Result "0-1"]
[ECO "E04"]
[WhiteElo "2107"]
[BlackElo "2371"]
[Annotator "TA"]
[PlyCount "60"]
[EventDate "2022.08.12"]
[EventType "swiss"]
[EventCountry "GER"]
[SourceTitle "playchess.com"]
[Source "ChessBase"]
[SourceQuality "1"]
[TimeControl "40/5400+30:1800+30"]

{[%evp 11,60,27,29,28,19,-23,-5,-29,-43,-35,6,0,0,0,0,-88,-92,-87,-79,-112,-115,-116,-120,-129,-140,-164,-131,-159,-167,-212,-203,-302,-318,-275,-282,-390,-390,-547,-522,-502,-367,-366,-314,-292,-289,-418,-292,-290,-288,-270,-233]} 1. d4 {[%emt 0:00:19]} Nf6 {[%emt 0:00:13]} 2. c4 {[%emt 0:00:05]} e6 {[%emt 0:00:06]} 3. g3 {[%emt 0:00:07]} d5 {[%emt 0:00:15]} 4. Nf3 {[%emt 0:00:09]} dxc4 {[%emt 0:00:15]} 5. Bg2 {[%emt 0:00:15]} a6 {[%emt 0:00:14]} 6. O-O {[%emt 0:01:39]} Nc6 {[%emt 0:00:17]} 7. Bg5 {[%emt 0:03:47] E04: Open Catalan: 5 Nf3.} Be7 {[%emt 0:01:23]} 8. a4 {[%emt 0:03:39] [#]} h6 $146 {[%emt 0:10:32]} ({Predecessor:} 8... Bd7 9. Na3 h6 10. Bxf6 Bxf6 11. Nxc4 O-O 12. e3 Qe7 13. a5 Rac8 14. Qe2 Rfe8 {½-½ (53) Barrionuevo,P (2259)-Perestjuk,M (2160) Chess.com INT 2020}) 9. Bxf6 {[%emt 0:00:59] The position is equal.} Bxf6 {[%emt 0:00:13]} 10. e3 {[%emt 0:00:33]} Rb8 {[%emt 0:03:56]} 11. a5 {[%emt 0:07:16]} b5 {[%emt 0:03:42]} 12. axb6 $1 {[%emt 0:01:05]} cxb6 {[%emt 0:00:54]} 13. b3 {[%emt 0:11:28]} (13. Nfd2 $11 {keeps the balance.} Na5 14. Qh5) 13... cxb3 $17 {[%emt 0:05:30] Black keeps a firm grip on the game.} 14. Qxb3 {[%emt 0:00:30]} O-O {[%emt 0:16:32]} 15. Nc3 {[%emt 0:01:29]} a5 {[%emt 0:04:08]} 16. Ne4 {[%emt 0:10:50]} Be7 {[%emt 0:02:33]} 17. Rfd1 {[%emt 0:00:58]} Nb4 {[%emt 0:03:27]} 18. Ne5 {[%emt 0:01:46]} Bb7 {[%emt 0:04:36]} 19. Rac1 {[%emt 0:08:15]} Rc8 {[%emt 0:12:03] Hoping for ...Rxc1.} 20. Qa4 {[%emt 0:04:27]} Rc7 {[%emt 0:04:26] Against Qd7} 21. Qa1 {[%emt 0:06:51]} (21. h3 $142) 21... Rxc1 $19 {[%emt 0:05:07]} 22. Rxc1 {[%emt 0:00:08]} Qa8 {[%emt 0:00:40]} 23. f3 {[%emt 0:04:50]} Rc8 {[%emt 0:02:33]} 24. Nd7 {[%emt 0:07:19]} (24. Nc3 $142 Bg5 25. Nd1) 24... Rxc1+ {[%emt 0:00:53]} 25. Qxc1 {[%emt 0:00:06]} Qd8 {[%emt 0:00:15]} 26. Ne5 {[%emt 0:01:11]} Qc8 {[%emt 0:02:06]} 27. Qxc8+ {[%emt 0:05:56]} Bxc8 {[%emt 0:00:01]} 28. Nc4 {[%emt 0:00:26]} (28. Nc3 {was called for.}) 28... a4 {[%emt 0:07:24][%cal Ba5a4,Ba4a3][%mdl 32] And now ...Nd5 would win.} 29. Nxb6 {[%emt 0:04:24] [#]} a3 $1 {[%emt 0:00:58]} 30. Nc3 {[%emt 0:00:22]} ({Don't go for} 30. Nxc8 $2 a2 31. Bf1 Kf8 32. Nxe7 Kxe7 $19) 30... Ba6 {[%emt 0:01:50] Weighted Error Value: White=0.39/Black=0.15 (very precise)} 0-1